bitfinex-derivatives/quotes_ETHF0:USTF0_20260204
["timestamp","ask_amount","ask_price","bid_price","bid_amount"]
[1770180126662,2.43769119,2278.5,2277.8,2.31191015]
[1770180126868,3.8754599,2278.4,2277.8,2.31191015]
[1770180127069,2.43424911,2278.3,2277.7,0.21981]
[1770180127259,1.44121079,2278.2,2277.4,2.31191015]
[1770180127460,2.43424911,2278.1,2277.5,2.31191015]
[1770180130173,1.44121079,2278.2,2277.5,2.31191015]
[1770180130874,3.8754599,2278.2,2277.5,2.31191015]
[1770180133174,2.43424911,2278.1,2277.5,2.31191015]
[1770180133668,2.43424911,2278.1,2277.3,2.31191015]
[1770180138982,2.43424911,2278.0,2277.2,0.21986]
[1770180142675,4.44124911,2278.0,2277.2,2.51162137]
[1770180148582,2.43424911,2278.0,2277.2,2.51162137]
[1770180148778,7.24162758,2278.1,2277.2,2.51162137]
[1770180149181,9.76348026,2278.1,2277.2,2.51162137]
[1770180149884,7.75548026,2278.1,2277.2,2.51162137]
[1770180150085,7.75548026,2278.2,2277.2,2.51162137]
[1770180150286,2.52185268,2278.1,2277.2,2.51162137]
[1770180155293,2.52185268,2278.0,2277.2,2.51162137]
[1770180160093,2.52185268,2278.0,2277.2,0.21986]
[1770180160294,2.52185268,2277.9,2277.2,0.21986]
[1770180161997,2.52185268,2277.9,2277.2,2.51162137]
[1770180163299,7.75548026,2277.9,2277.2,2.51162137]
[1770180165201,5.23362758,2278.0,2277.2,2.51162137]
[1770180165401,7.75548026,2278.0,2277.2,2.51162137]
[1770180166201,2.52185268,2277.9,2277.2,2.51162137]
[1770180174208,2.52185268,2277.9,2277.2,0.21986]
[1770180174507,2.40759649,2277.8,2277.3,2.35322474]
[1770180175406,2.40759649,2277.8,2277.2,2.85017018]
[1770180175806,2.40759649,2277.8,2277.2,5.20339492]
[1770180176106,2.40759649,2277.8,2277.2,2.57308474]
[1770180177205,7.24562758,2277.9,2277.2,2.57308474]
[1770180177408,9.56260297,2277.9,2277.2,2.57308474]
[1770180179001,2.31697539,2277.8,2277.2,2.57308474]
[1770180182905,2.31697539,2277.7,2276.9,2.63031018]
[1770180183105,2.31697539,2277.4,2276.8,0.00348616]
[1770180183304,2.31697539,2277.4,2276.4,2.29961598]
[1770180184204,4.394,2277.3,2276.4,0.00373343]
[1770180184409,2.31697539,2277.1,2276.4,0.00373343]
[1770180190508,1.44150816,2277.0,2276.4,0.00373343]
[1770180190712,2.31697539,2276.9,2275.9,2.29961598]
[1770180191616,2.32263164,2276.9,2275.9,2.30360757]
[1770180192119,2.32263164,2276.9,2275.9,0.00399159]
[1770180192814,1.44150816,2276.7,2275.9,0.00399159]
[1770180193010,2.31697539,2276.6,2275.9,0.00399159]
[1770180193214,2.31697539,2276.4,2275.9,0.00399159]
[1770180194220,2.31697539,2276.4,2275.5,2.29961598]
[1770180194519,2.31697539,2276.1,2275.5,2.29961598]
[1770180194719,2.31697539,2276.3,2275.5,2.29961598]
[1770180195413,2.31697539,2276.3,2275.5,2.30531663]
[1770180195614,2.31697539,2276.5,2275.6,1.44399247]
[1770180195919,2.31697539,2276.7,2275.9,2.29961598]
[1770180197215,8.64763164,2276.9,2275.9,2.51959598]
[1770180197414,0.00565625,2276.9,2276.1,2.29961598]
[1770180199016,0.00565625,2276.9,2276.3,2.29961598]
[1770180199617,0.00565625,2276.9,2276.3,2.51955598]
[1770180201616,2.33276146,2276.9,2276.3,2.51955598]
[1770180205316,2.32710521,2276.7,2275.7,2.35138491]
[1770180206522,1.44399247,2276.6,2275.9,2.35138491]
[1770180206821,2.32710521,2276.5,2275.7,2.35138491]
[1770180208322,2.32710521,2276.7,2275.7,2.35138491]
[1770180208523,3.89276146,2276.9,2275.9,2.35138491]
[1770180209020,2.32710521,2276.8,2275.9,2.35138491]
[1770180209616,3.77109768,2276.8,2275.9,2.35138491]
[1770180210725,0.00565625,2276.9,2275.9,2.57136491]
[1770180211023,0.00565625,2276.9,2276.1,2.35138491]
[1770180212621,0.00565625,2276.9,2276.3,2.35138491]
[1770180215119,2.33276146,2276.9,2276.3,2.35138491]
[1770180215321,2.32710521,2276.7,2275.9,2.35138491]
[1770180217529,2.32710521,2276.5,2275.9,2.35138491]
[1770180219427,2.32710521,2276.5,2275.7,2.57138491]
[1770180220028,2.32710521,2276.5,2275.7,0.22]
[1770180220229,2.32710521,2276.4,2275.7,0.22]
[1770180223232,9.53976892,2276.6,2275.7,2.57138491]
[1770180223833,7.54076892,2276.6,2275.7,2.57138491]
[1770180225533,2.32710521,2276.5,2275.7,2.57138491]
[1770180237134,5.21366371,2276.5,2275.8,2.45505894]
[1770180237337,4.50441766,2276.5,2275.8,2.45505894]
[1770180240946,7.71808137,2276.8,2275.9,2.67503894]
[1770180241344,2.50441766,2276.7,2275.9,2.67503894]
[1770180242047,2.00765625,2276.9,2275.9,2.67503894]
[1770180242048,3.94793728,2276.6,2275.9,2.67503894]
[1770180242241,2.50441766,2276.5,2275.9,2.45505894]
[1770180242438,2.50441766,2276.5,2275.6,2.45505894]
[1770180243250,2.50441766,2276.5,2275.6,6.53870661]
[1770180243450,2.50441766,2276.5,2275.6,2.45505894]
[1770180244246,2.50441766,2276.5,2275.6,5.08711807]
[1770180244452,2.50441766,2276.5,2275.7,2.45505894]
[1770180247758,5.21366371,2276.6,2275.7,2.67505894]
[1770180247959,12.11508137,2276.7,2275.8,2.45505894]
[1770180248955,2.003,2276.6,2275.8,2.45505894]
[1770180252065,4.50741766,2276.6,2275.8,2.45505894]
[1770180252564,2.50441766,2276.6,2275.8,2.45505894]
[1770180252762,4.50841766,2276.6,2275.8,2.45505894]
[1770180254366,7.71808137,2276.8,2275.9,2.45505894]
[1770180254565,2.004,2276.7,2275.9,2.45505894]
[1770180254860,2.50441766,2276.6,2275.9,2.45505894]
[1770180255163,2.50441766,2276.5,2275.8,2.67504894]
[1770180255562,2.50441766,2276.5,2275.8,0.21999]
[1770180256066,2.50441766,2276.5,2275.7,2.45505894]
[1770180256267,3.94793728,2276.2,2275.7,2.45505894]
[1770180256466,2.50441766,2276.2,2275.7,2.45505894]
[1770180257866,2.50441766,2276.4,2275.7,2.45505894]
[1770180258468,2.50441766,2276.4,2275.6,0.22001]
[1770180258870,2.50441766,2276.4,2275.6,2.67506894]
[1770180259462,5.21366371,2276.4,2275.6,2.67506894]
[1770180259663,2.50441766,2276.3,2275.6,2.67506894]
[1770180260268,2.50441766,2276.3,2275.6,0.22001]
[1770180264873,2.50441766,2276.3,2275.6,2.64512208]
[1770180265077,2.3319558,2276.2,2275.6,2.64512208]
[1770180265271,2.3319558,2276.2,2275.5,0.00570065]
[1770180268172,2.3319558,2275.8,2274.9,2.42511208]
[1770180268571,2.3319558,2275.7,2274.9,2.42511208]
[1770180269170,2.3319558,2275.7,2274.9,2.43023328]
[1770180271877,2.006,2275.8,2274.9,2.65031328]
[1770180272078,2.3319558,2275.9,2274.9,2.65031328]
[1770180274775,2.3319558,2275.9,2274.9,0.0051212]
[1770180274976,2.3319558,2275.9,2274.9,2.43023328]
[1770180275983,1.4438024,2275.8,2274.9,2.43023328]
[1770180276281,2.3319558,2275.7,2274.9,2.43023328]
[1770180279083,2.3319558,2275.7,2274.9,0.0051212]
[1770180280284,4.3339558,2275.7,2275.0,2.42511208]
[1770180281387,2.3319558,2275.9,2275.0,2.64518208]
[1770180281586,4.3339558,2275.8,2275.0,2.64518208]
[1770180282188,2.3319558,2275.7,2275.0,2.64518208]
[1770180290593,4.3319558,2275.9,2275.0,2.64518208]
[1770180290796,2.4636584,2275.8,2275.0,2.64518208]
[1770180295698,2.4636584,2275.7,2275.0,2.64518208]
[1770180299105,2.4636584,2275.7,2274.9,0.0051212]
[1770180299311,2.36614278,2275.5,2274.9,0.0051212]
[1770180299513,2.36614278,2275.4,2274.9,0.0051212]
[1770180300911,5.21366371,2275.5,2274.9,2.48794401]
[1770180301309,4.36914278,2275.6,2274.9,2.48794401]
[1770180301612,2.36614278,2275.5,2274.9,2.48794401]
[1770180305520,7.57980649,2275.7,2274.9,2.48794401]
[1770180305721,9.58380649,2275.7,2274.9,2.48794401]
[1770180307719,2.36614278,2275.6,2274.9,2.48794401]
[1770180311617,2.007,2275.7,2274.9,2.48794401]
[1770180312122,4.37314278,2275.7,2274.9,2.48794401]
[1770180313222,2.36614278,2275.6,2274.9,2.48794401]
[1770180318018,2.36614278,2275.5,2274.9,0.0051212]
[1770180318219,2.36614278,2275.4,2274.9,0.0051212]
[1770180318521,2.36614278,2275.3,2274.5,2.48282281]
[1770180319418,2.37097384,2275.3,2274.5,2.4875204]
[1770180322421,2.37097384,2275.3,2274.5,0.00469759]
[1770180322630,2.35115903,2275.1,2274.5,0.00469759]
[1770180323525,2.35115903,2274.7,2274.0,5.14624206]
[1770180323726,2.35115903,2274.7,2274.0,2.51418293]
[1770180324724,2.35115903,2274.7,2274.0,2.51957511]
[1770180324931,2.35115903,2274.5,2274.0,0.00539218]
[1770180325127,2.35115903,2274.7,2274.0,2.51957511]
[1770180328025,1.44509013,2274.6,2274.0,2.51957511]
[1770180328231,2.35115903,2274.5,2274.0,0.00539218]
[1770180330528,2.35115903,2274.3,2274.0,0.00539218]
[1770180330730,2.35115903,2274.5,2274.0,0.00539218]
[1770180330923,2.35115903,2274.6,2274.0,2.51957511]
[1770180332831,2.35115903,2274.5,2274.0,2.51957511]
[1770180333026,2.35115903,2274.5,2274.0,0.00539218]
[1770180333224,2.35115903,2274.3,2274.0,0.00539218]
[1770180333730,2.35115903,2274.3,2273.7,2.73614749]
[1770180333931,3.92315903,2274.7,2273.9,2.51418293]
[1770180334130,4.35815903,2274.7,2273.9,2.51418293]
[1770180334428,2.35115903,2274.7,2273.9,2.51418293]
[1770180334632,4.35815903,2274.7,2273.9,2.5174335]
[1770180335035,2.35115903,2274.6,2273.9,2.5174335]
[1770180336429,1.44509013,2274.4,2273.9,0.00325057]
[1770180336729,2.35115903,2274.3,2273.9,0.00325057]
[1770180337531,2.35115903,2274.5,2273.9,2.5174335]
[1770180337831,0.00483106,2275.3,2274.7,2.51418293]
[1770180339432,4.65624916,2275.7,2274.7,2.51418293]
[1770180339935,2.35115903,2275.6,2274.3,2.62373865]
[1770180340133,2.35115903,2274.8,2274.0,0.22016]
[1770180340333,3.79624916,2274.7,2274.0,0.22016]
[1770180341235,2.35115903,2274.5,2274.0,0.22016]
[1770180341627,2.35115903,2274.5,2273.9,0.00325057]
[1770180342229,2.35115903,2274.2,2273.9,0.00325057]
[1770180343332,6.74795903,2274.1,2273.7,0.22196456]
[1770180343531,2.35115903,2274.0,2273.7,0.22196456]
[1770180344340,2.35115903,2274.0,2273.7,0.22741353]
[1770180346033,2.35115903,2273.9,2273.7,0.22583304]
[1770180346941,6.74795903,2273.9,2273.7,0.22583304]
[1770180347939,2.35115903,2273.8,2273.7,0.22583304]
[1770180348334,2.35115903,2274.7,2273.7,2.74001597]
[1770180348534,0.00525067,2274.8,2273.7,2.74001597]
[1770180348535,2.35115903,2274.3,2273.7,2.74001597]
[1770180349039,4.3968,2274.2,2273.7,2.74001597]
[1770180349743,2.35115903,2274.3,2273.7,2.74001597]
[1770180350843,2.42607406,2274.7,2273.7,2.74001597]
[1770180351142,2.42607406,2274.5,2273.7,2.74001597]
[1770180351534,2.42607406,2274.4,2273.7,2.74001597]
[1770180353747,6.82287406,2274.4,2273.7,2.74001597]
[1770180357243,2.46791498,2274.3,2273.7,0.22583304]
[1770180357549,0.86525067,2274.8,2273.7,0.22583304]
[1770180357550,2.46791498,2274.0,2273.7,0.22583304]
[1770180357951,6.86471498,2274.0,2273.7,0.22583304]
[1770180358643,6.86471498,2273.8,2273.7,0.22583304]
[1770180358949,2.46791498,2273.8,2273.7,0.22583304]
[1770180359150,4.3968,2273.8,2273.7,0.22583304]
[1770180361545,5.23651666,2274.6,2273.7,0.22583304]
[1770180361847,2.46791498,2274.5,2273.7,2.61209841]
[1770180362050,7.70443164,2274.7,2273.7,2.61209841]
[1770180363045,2.46791498,2274.7,2273.8,0.22018]
[1770180363751,2.46791498,2274.6,2273.8,0.22018]
[1770180365452,4.93582996,2274.5,2273.8,2.60644537]
[1770180365648,2.46791498,2274.5,2273.8,2.60644537]
[1770180367554,2.46791498,2274.3,2273.8,0.22018]
[1770180368552,2.46791498,2274.2,2273.8,0.22018]
[1770180372855,4.93582996,2274.2,2273.8,0.22018]
[1770180373049,2.46791498,2274.1,2273.8,0.22018]
[1770180376054,4.93582996,2274.1,2273.8,0.22018]
[1770180378360,2.46791498,2274.0,2273.7,0.22583304]
[1770180378960,2.46791498,2273.9,2273.7,0.22583304]
[1770180380561,2.46791498,2273.7,2273.0,2.62701864]
[1770180380763,2.28829559,2273.5,2273.0,2.62701864]
[1770180381163,2.28829559,2273.4,2272.9,5.32032176]
[1770180381562,2.28829559,2273.4,2272.9,5.32377852]
[1770180382362,2.28829559,2273.3,2272.9,0.24572568]
[1770180382762,4.75621057,2273.3,2272.9,0.24572568]
[1770180383857,2.28829559,2273.2,2272.9,0.24572568]
[1770180384157,2.29206722,2273.2,2272.6,4.24977852]
[1770180384360,2.46791498,2273.1,2272.7,2.4510342]
[1770180384661,1.39391498,2273.1,2272.9,0.22027]
[1770180385064,1.39391498,2273.1,2272.9,0.22385258]
[1770180385267,2.28829559,2273.0,2272.4,2.4510342]
[1770180385455,2.28829559,2273.0,2272.3,4.36675482]
[1770180385659,2.28829559,2272.8,2272.3,0.22033]
[1770180386060,1.39391498,2272.8,2272.3,2.6713642]
[1770180386260,1.39391498,2272.8,2272.4,2.6713542]
[1770180386459,2.28829559,2273.1,2272.4,0.22032]
[1770180386659,2.28829559,2272.9,2272.4,0.22032]
[1770180386859,1.39391498,2273.0,2272.4,2.6713542]
[1770180387560,3.68221057,2273.0,2272.4,2.6713542]
[1770180389358,2.28829559,2272.9,2272.4,0.22032]
[1770180391664,0.92531498,2272.8,2272.4,2.6713542]
[1770180391865,3.21361057,2273.1,2272.4,2.6713542]
[1770180392963,2.28829559,2273.0,2272.4,0.22032]
[1770180394066,0.92531498,2272.9,2272.4,0.22032]
[1770180394267,2.28829559,2272.8,2272.4,0.22032]
[1770180394770,3.21361057,2272.7,2272.4,0.22032]
[1770180395065,2.28829559,2272.6,2272.0,2.6713942]
[1770180395468,0.9203949,2272.6,2272.0,2.6713942]
[1770180395669,0.9203949,2272.6,2272.2,2.4510342]
[1770180395970,0.9203949,2272.6,2272.2,2.45298283]
[1770180398370,2.28829559,2272.8,2272.2,2.45298283]
[1770180398672,0.9203949,2272.7,2272.2,2.45298283]
[1770180399770,2.29206722,2273.2,2272.3,2.4510342]
[1770180399975,2.29206722,2273.2,2272.5,0.22031]
[1770180401577,2.29206722,2273.2,2272.2,0.00194863]
[1770180403375,2.29206722,2273.2,2272.2,2.67332283]
[1770180403774,2.29206722,2273.2,2272.2,0.22228863]
[1770180416087,2.29206722,2273.2,2272.2,4.35869973]
[1770180416282,2.29206722,2273.2,2272.2,0.22228863]
[1770180416586,2.29206722,2273.2,2272.2,2.53724355]
[1770180417382,2.32650639,2273.1,2272.3,0.22033]
[1770180417587,2.32650639,2273.1,2272.3,2.53528492]
[1770180417787,2.32650639,2273.1,2272.3,0.22033]
[1770180417988,2.32650639,2273.1,2272.3,4.36772618]
[1770180418191,2.32650639,2273.1,2272.3,0.22033]
[1770180419281,2.32650639,2273.1,2272.3,4.36439928]
[1770180419487,2.32650639,2273.1,2272.3,0.22033]
[1770180419888,2.32650639,2273.1,2272.3,4.36456612]
[1770180420087,2.32650639,2273.1,2272.3,0.22033]
[1770180421290,2.32650639,2273.1,2272.3,4.14438911]
[1770180421492,2.32650639,2273.1,2272.2,0.00194863]
[1770180421692,2.32650639,2273.1,2272.2,2.31690355]
[1770180421990,2.32650639,2273.1,2272.2,0.00194863]
[1770180422490,2.32650639,2273.1,2272.5,2.53526492]
[1770180422885,0.00377163,2273.2,2272.7,2.31495492]
[1770180423193,5.23651666,2274.0,2273.0,2.31495492]
[1770180423394,5.23651666,2274.1,2273.0,2.31495492]
[1770180423790,5.23651666,2274.1,2273.1,2.31495492]
[1770180424085,5.24013117,2274.1,2273.1,2.31495492]
[1770180424285,0.00361451,2274.1,2273.1,2.31495492]
[1770180424595,5.23651666,2274.0,2272.9,0.22027]
[1770180424893,2.32650639,2273.9,2272.9,0.22027]
[1770180425391,2.32650639,2273.9,2272.9,2.53522492]
[1770180437098,5.24013117,2274.1,2272.6,8.06494746]
[1770180437099,0.00361451,2274.1,2273.4,0.22022]
[1770180437300,0.00361451,2274.1,2273.4,2.53517492]
[1770180437504,2.3301209,2274.1,2273.4,2.53517492]
[1770180438102,1.447696,2273.5,2272.4,5.24807563]
[1770180438407,1.44811643,2273.0,2272.3,2.74558975]
[1770180439200,1.44811643,2273.0,2272.3,0.22033]
[1770180439900,1.49794685,2273.0,2272.3,0.22033]
[1770180440500,0.04983042,2273.0,2272.3,0.22033]
[1770180440707,0.0506021,2273.2,2272.3,2.72063765]
[1770180441408,0.0506021,2273.4,2272.3,2.72063765]
[1770180441802,2.04808251,2272.9,2271.5,2.5256087]
[1770180442008,39.16395594,2272.7,2271.5,2.5256087]
[1770180442205,41.12395594,2272.8,2271.5,2.5256087]
[1770180443004,1.96,2272.8,2271.5,2.52880484]
[1770180449711,1.96,2272.8,2271.5,2.74921484]
[1770180452008,1.98157688,2272.8,2271.5,2.74921484]
[1770180452412,0.02157688,2272.7,2271.5,2.74921484]
[1770180455714,0.04468481,2272.4,2271.5,0.00319614]
[1770180456019,0.0056834,2272.4,2271.5,2.50646244]
[1770180456417,0.05686669,2272.4,2271.5,2.50646244]
[1770180457018,0.0056834,2272.4,2271.5,2.50646244]
[1770180458617,0.0056834,2272.4,2271.7,2.49830756]
[1770180461825,0.0056834,2272.4,2271.7,2.71869756]
[1770180462821,39.21900054,2273.0,2271.9,2.4980864]
[1770180463124,0.0550446,2273.0,2271.9,2.7184564]
[1770180463627,0.060728,2272.6,2271.9,0.22037]
[1770180463926,0.06524623,2272.6,2271.9,0.22037]
[1770180464328,0.06524623,2272.6,2271.9,2.71579005]
[1770180464530,0.00451823,2272.6,2271.9,2.71579005]
[1770180466327,0.00451823,2272.6,2271.9,2.49542005]
[1770180466626,0.0603773,2273.0,2271.6,2.6280437]
[1770180466627,0.0603773,2273.0,2272.1,2.49477934]
[1770180467530,0.06526443,2273.0,2272.1,2.49477934]
[1770180467730,0.00488713,2273.0,2272.1,2.49477934]
[1770180469531,0.00488713,2273.0,2272.0,0.22036]
[1770180469532,0.00488713,2273.0,2272.4,2.47736491]
[1770180470334,1.45296646,2273.0,2272.4,2.47736491]
[1770180471037,1.44807933,2273.1,2272.4,2.47736491]
[1770180472235,1.45289336,2273.1,2272.4,2.47736491]
[1770180472437,0.00481403,2273.1,2272.4,2.47736491]
[1770180473737,0.00481403,2273.1,2272.4,2.69768491]
[1770180478739,0.00481403,2273.1,2272.6,2.3206935]
[1770180479639,40.71652352,2273.5,2272.6,2.3206935]
[1770180480739,40.7221299,2273.5,2272.6,2.3206935]
[1770180480934,0.00560638,2273.5,2272.6,2.5409935]
[1770180481138,0.00560638,2273.5,2272.8,2.3206935]
[1770180484845,1.42925575,2273.7,2272.8,2.3206935]
[1770180485143,40.59321169,2273.9,2272.8,2.3206935]
[1770180485845,40.59840408,2273.9,2272.8,2.3206935]
[1770180486138,39.16395594,2273.8,2272.8,2.3206935]
[1770180486343,40.59840408,2273.9,2272.8,2.3206935]
[1770180486538,40.59840408,2273.9,2273.0,2.3206935]
[1770180486945,39.16395594,2273.8,2273.0,2.3206935]
[1770180487146,40.59840408,2273.9,2273.0,2.3206935]
[1770180487343,1.45591651,2274.5,2273.8,2.3206935]
[1770180487742,1.45591651,2274.8,2273.8,2.3206935]
[1770180488343,1.45947357,2274.8,2273.8,2.3244625]
[1770180491950,1.45947357,2274.8,2273.8,2.5446525]
[1770180494454,1.44617299,2274.5,2273.8,2.5446525]
[1770180495360,2.87440226,2274.5,2273.8,2.5446525]
[1770180495562,1.44617299,2274.5,2273.8,2.5446525]
[1770180497753,1.44617299,2274.0,2273.6,2.3206935]
[1770180498158,1.44617299,2274.2,2273.6,2.3206935]
[1770180498762,1.44617299,2274.2,2273.6,2.32516133]
[1770180500164,1.44617299,2274.6,2273.7,2.3206935]
[1770180500369,1.3324367,2274.7,2273.7,2.3206935]
[1770180506570,0.00355706,2274.8,2273.7,2.5408935]
[1770180509770,1.32335188,2274.8,2273.7,2.5408935]
[1770180510872,0.00355706,2274.8,2273.7,2.5408935]
[1770180512975,0.00355706,2274.8,2273.9,2.44833534]
[1770180513175,1.32201694,2275.3,2274.2,2.44833534]
[1770180513575,6.56209066,2275.5,2274.4,2.44833534]
[1770180513875,1.325574,2275.5,2274.4,2.44833534]
[1770180514274,6.56683243,2275.5,2274.4,2.44833534]
[1770180514476,0.00474177,2275.5,2274.4,2.66846534]
[1770180516878,1.3268513,2275.3,2274.4,2.66846534]
[1770180517778,1.33159307,2275.5,2274.4,2.66846534]
[1770180531993,0.00474177,2275.5,2274.6,2.49928727]
[1770180540403,1.33089654,2275.5,2274.6,2.49928727]
[1770180541902,0.00474177,2275.5,2274.6,2.49928727]
[1770180542499,1.30345694,2275.5,2274.6,2.49928727]
[1770180543298,6.5399736,2275.5,2274.6,2.49928727]
[1770180548805,6.5399736,2275.5,2274.7,2.50135972]
[1770180549203,5.24125843,2275.5,2274.7,2.50135972]
[1770180550108,0.00474177,2275.5,2274.7,2.50135972]
[1770180550509,1.31570063,2275.5,2274.7,2.50135972]
[1770180551709,5.23651666,2275.7,2274.9,2.50135972]
[1770180551908,6.55287456,2275.8,2274.9,2.50135972]
[1770180552109,1.3163579,2275.7,2274.9,2.50135972]
[1770180552312,1.3163579,2275.6,2274.9,2.50135972]
[1770180552706,0.00353591,2275.6,2274.9,2.50135972]
[1770180553208,1.31989381,2275.6,2274.9,2.50135972]
[1770180557509,0.00353591,2275.6,2274.9,2.50135972]
[1770180562418,2.69485315,2275.4,2274.9,2.50135972]
[1770180566120,5.24005257,2275.6,2274.9,2.50135972]
[1770180566121,7.90743723,2275.6,2274.9,2.50135972]
[1770180566322,5.24005257,2275.6,2274.9,2.50135972]
[1770180566518,1.44451845,2275.1,2274.7,2.31784405]
[1770180566723,2.66738466,2275.3,2274.7,2.31784405]
[1770180567224,1.22286621,2275.2,2274.7,2.31784405]
[1770180567422,3.78938074,2274.9,2274.2,2.63717429]
[1770180567622,3.78938074,2274.9,2274.1,2.85733429]
[1770180567822,3.78938074,2274.9,2274.1,4.34168201]
[1770180568525,3.78938074,2274.9,2274.1,0.22016]
[1770180568823,2.34486229,2274.8,2274.1,0.22016]
[1770180569625,2.34486229,2274.8,2274.2,2.31784405]
[1770180570123,6.52015119,2275.4,2274.0,6.71684405]
[1770180570124,3.78938074,2274.7,2274.0,6.71684405]
[1770180571526,1.44451845,2274.5,2274.1,2.31784405]
[1770180573326,5.23651666,2275.1,2274.1,2.31784405]
[1770180573528,0.00353591,2275.6,2274.9,2.31784405]
[1770180573731,2.3483982,2275.6,2274.9,2.31784405]
[1770180573932,1.44451845,2275.5,2274.9,2.31784405]
[1770180574127,3.78938074,2275.2,2274.7,3.17784405]
[1770180574429,1.44451845,2275.0,2274.4,2.31784405]
[1770180574832,2.34486229,2275.1,2274.4,2.31784405]
[1770180576831,2.34486229,2275.3,2274.4,2.31784405]
[1770180577025,2.34486229,2275.3,2274.4,3.7623625]
[1770180577233,2.34486229,2275.3,2274.5,2.31784405]
[1770180580732,1.44451845,2275.2,2274.5,2.31784405]
[1770180581033,2.34486229,2275.1,2274.5,2.31784405]
[1770180583735,3.78938074,2274.6,2274.1,2.31784405]
[1770180583938,2.34486229,2274.6,2274.1,2.31784405]
[1770180585639,2.34486229,2274.8,2274.1,2.31784405]
[1770180587946,2.34486229,2274.7,2273.9,0.22018]
[1770180588141,2.34486229,2274.7,2273.9,2.53802405]
[1770180588337,2.34486229,2274.9,2273.9,2.53802405]
[1770180589040,2.34486229,2274.9,2274.0,0.22016]
[1770180589245,2.34486229,2274.9,2274.1,2.31784405]
[1770180590345,2.34486229,2274.7,2274.0,0.22016]
[1770180590744,2.34486229,2274.7,2274.0,2.65875318]
[1770180592845,1.44451845,2274.6,2274.0,2.65875318]
[1770180593547,3.76358944,2274.6,2274.0,2.65875318]
[1770180593742,1.44451845,2274.8,2274.0,2.65875318]
[1770180593948,2.31907099,2274.7,2274.0,2.65875318]
[1770180594544,1.44451845,2274.6,2274.0,2.65875318]
[1770180596546,3.81515353,2274.6,2274.0,2.65875318]
[1770180598447,2.37063508,2274.3,2273.9,0.1]
[1770180598751,1.44451845,2274.4,2273.9,2.50105076]
[1770180599050,3.81515353,2274.4,2273.9,2.50105076]
[1770180600250,1.44451845,2274.4,2273.9,2.50105076]
[1770180600751,3.81515353,2274.6,2273.9,2.50105076]
[1770180601546,6.68103511,2274.8,2273.9,2.50105076]
[1770180601753,3.81515353,2274.8,2273.9,2.50105076]
[1770180601948,3.81515353,2274.8,2274.1,2.40105076]
[1770180602146,2.37063508,2274.7,2274.1,2.40105076]
[1770180602652,1.44451845,2274.6,2274.1,2.40105076]
[1770180602852,1.44451845,2274.4,2274.0,2.62122076]
[1770180603051,3.81515353,2274.4,2274.0,2.62122076]
[1770180604453,1.44451845,2274.6,2274.0,2.62122076]
[1770180604748,2.37063508,2274.5,2273.6,2.64164212]
[1770180604952,1.44451845,2273.7,2273.2,2.40105076]
[1770180606054,1.44784271,2273.7,2273.2,2.4061837]
[1770180606254,0.00332426,2273.7,2273.2,2.4061837]
[1770180608651,1.44451845,2274.3,2273.3,2.40105076]
[1770180608855,2.37063508,2274.4,2273.3,2.40105076]
[1770180609649,0.00546973,2274.4,2273.6,2.40105076]
[1770180612453,1.44451845,2274.9,2273.8,2.40105076]
[1770180612655,3.81515353,2274.9,2273.8,2.40105076]
[1770180613455,3.81947445,2274.9,2273.8,2.40105076]
[1770180614853,0.00432092,2274.9,2274.1,2.40105076]
[1770180615057,0.00432092,2274.9,2274.2,2.40105076]
[1770180618253,2.374956,2274.9,2274.2,2.40105076]
[1770180618454,2.37063508,2274.8,2274.2,2.40105076]
[1770180622758,0.00432092,2274.9,2274.2,2.40105076]
[1770180624062,0.00432092,2274.9,2274.2,2.62120076]
[1770180624754,0.00432092,2274.9,2274.5,2.45572488]
[1770180624960,2.28794789,2275.3,2274.5,2.45572488]
[1770180625354,7.51509511,2275.5,2274.5,2.45572488]
[1770180625560,2.28794789,2275.4,2274.5,2.45572488]
[1770180625961,2.29171507,2275.4,2274.5,2.45572488]
[1770180626162,2.29171507,2275.4,2274.5,2.67584488]
[1770180628157,0.00376718,2275.4,2274.8,2.45572488]
[1770180628363,0.00376718,2275.4,2274.8,2.67949131]
[1770180630869,1.44590128,2275.9,2274.8,2.67949131]
[1770180631269,3.73384917,2275.9,2274.8,2.67949131]
[1770180631867,3.73801975,2275.9,2274.8,2.67949131]
[1770180632971,3.73801975,2275.9,2275.0,2.45572488]
[1770180634271,2.28794789,2275.8,2275.0,2.45572488]
[1770180635566,2.29211847,2275.9,2275.0,2.67579488]
[1770180636472,1.44590128,2275.8,2275.0,2.67579488]
[1770180636672,2.28794789,2275.7,2275.0,2.67579488]
[1770180637774,2.28794789,2275.7,2274.8,2.45940131]
[1770180637969,2.28794789,2275.4,2274.8,2.45940131]
[1770180638171,2.28794789,2275.4,2274.8,0.00367643]
[1770180639877,2.28794789,2275.6,2274.8,2.45940131]
[1770180652290,7.51509511,2275.6,2274.8,2.45940131]
[1770180653998,2.45508658,2275.5,2274.8,2.45940131]
[1770180655499,2.45508658,2275.4,2274.6,2.64488455]
[1770180656199,2.35562972,2275.1,2274.1,3.94881209]
[1770180656400,2.35562972,2275.1,2274.1,3.95263074]
[1770180656900,2.35562972,2275.1,2274.1,8.02980647]
[1770180657299,2.35562972,2275.1,2274.2,4.07717573]
[1770180657499,2.35562972,2275.1,2274.1,0.00381865]
[1770180657900,2.35562972,2275.1,2274.1,4.08044796]
[1770180658301,2.35562972,2275.1,2274.2,2.29938287]
[1770180661000,7.58277694,2275.3,2274.2,2.29938287]
[1770180661503,2.35562972,2275.2,2274.2,2.29938287]
[1770180662505,2.35562972,2275.2,2274.2,2.51953287]
[1770180668814,5.22714722,2275.4,2274.4,2.29938287]
[1770180669009,2.35562972,2275.5,2274.7,2.29938287]
[1770180669210,7.58277694,2275.5,2274.7,2.29938287]
[1770180669408,2.35562972,2275.4,2274.7,2.29938287]
[1770180669611,2.35562972,2275.4,2274.6,0.22011]
[1770180673016,2.35562972,2275.4,2274.6,2.51949287]
[1770180680015,2.35562972,2275.4,2274.6,0.22011]
[1770180680223,2.35562972,2275.3,2274.6,0.22011]
[1770180680422,2.35562972,2275.3,2274.6,2.51949287]
[1770180687925,2.35562972,2275.3,2274.6,0.22011]
[1770180689122,2.35562972,2275.3,2274.6,2.73497188]
[1770180704837,2.35562972,2275.3,2274.6,0.22011]
[1770180705038,2.35059311,2275.2,2274.6,0.22011]
[1770180705734,2.35059311,2275.2,2274.6,2.73497188]
[1770180706840,2.35059311,2275.2,2274.6,0.22011]
[1770180707042,2.35059311,2275.2,2274.6,2.73497188]
[1770180711347,2.49015775,2274.8,2274.2,5.15425345]
[1770180711547,2.49015775,2274.6,2274.2,0.22015]
[1770180712550,2.49015775,2274.6,2274.2,2.51918664]
[1770180712753,2.49015775,2274.6,2274.2,0.22015]
[1770180713054,1.44521485,2274.7,2273.7,0.11246856]
[1770180713055,2.49015775,2274.3,2273.7,0.11246856]
[1770180713249,2.49015775,2274.1,2273.6,2.29903664]
[1770180714052,2.49565359,2274.1,2273.6,2.30338133]
[1770180714551,2.49565359,2274.1,2273.6,2.52358133]